bitfinex/quotes_BTCUSD_20221001
["timestamp","ask_amount","ask_price","bid_price","bid_amount"]
[1664646228842,0.37424752,19292.0,19291.0,1.57397569]
[1664646229085,0.37424752,19292.0,19291.0,0.81672923]
[1664646229301,0.37424752,19292.0,19291.0,1.57397569]
[1664646229952,0.37424752,19292.0,19291.0,0.81672923]
[1664646230195,0.37424752,19292.0,19291.0,0.79772923]
[1664646230373,0.37424752,19292.0,19291.0,0.74772923]
[1664646230570,0.37424752,19292.0,19291.0,1.15579523]
[1664646230764,0.37424752,19292.0,19291.0,1.17279523]
[1664646230980,0.37424752,19292.0,19291.0,0.81472923]
[1664646231214,0.37424752,19292.0,19291.0,1.57197569]
[1664646231657,0.37424752,19292.0,19291.0,1.52197569]
[1664646232083,0.37424752,19292.0,19291.0,1.10579523]
[1664646232592,0.01042082,19292.0,19291.0,3.29497569]
[1664646232976,0.01042082,19292.0,19291.0,3.31397569]
[1664646233993,0.01042082,19292.0,19291.0,3.29497569]
[1664646234886,0.01042082,19292.0,19291.0,3.31397569]
[1664646236058,0.01042082,19292.0,19291.0,3.29497569]
[1664646236278,0.01032913,19292.0,19291.0,3.29497569]
[1664646236938,0.01032913,19292.0,19291.0,3.31397569]
[1664646237835,0.01032913,19292.0,19291.0,1.17479523]
[1664646238095,0.01032913,19292.0,19291.0,1.57397569]
[1664646238314,0.01032913,19292.0,19291.0,1.55497569]
[1664646238828,0.01032913,19292.0,19291.0,1.19690969]
[1664646239053,0.01032913,19292.0,19291.0,1.57397569]
[1664646239266,0.01032913,19292.0,19291.0,1.57389666]
[1664646240163,0.01032913,19292.0,19291.0,1.55489666]
[1664646241071,0.01032913,19292.0,19291.0,1.57389666]
[1664646242182,0.01032913,19292.0,19291.0,1.55489666]
[1664646242624,0.01032913,19292.0,19291.0,1.19683066]
[1664646242887,0.01032913,19292.0,19291.0,1.55489666]
[1664646243116,0.01032913,19292.0,19291.0,1.57389666]
[1664646243776,0.01032913,19292.0,19291.0,1.21583066]
[1664646244214,0.01032913,19292.0,19291.0,0.7976502]
[1664646244441,0.01032913,19292.0,19291.0,1.1557162]
[1664646244879,0.01032913,19292.0,19291.0,0.8166502]
[1664646245218,0.01032913,19292.0,19291.0,1.1747162]
[1664646245673,0.01032913,19292.0,19291.0,1.57389666]
[1664646246108,0.01032913,19292.0,19291.0,1.55489666]
[1664646246768,0.01032913,19292.0,19291.0,1.19683066]
[1664646247052,0.01032913,19292.0,19291.0,1.57389666]
[1664646247492,0.01032913,19292.0,19291.0,1.1747162]
[1664646247740,0.01032913,19292.0,19291.0,1.57389666]
[1664646248183,0.01032913,19292.0,19291.0,1.1557162]
[1664646248636,0.01032913,19292.0,19291.0,1.19683066]
[1664646249075,0.01032913,19292.0,19291.0,1.21583066]
[1664646249303,0.01032913,19292.0,19291.0,1.57389666]
[1664646249553,0.01032913,19292.0,19291.0,1.21583066]
[1664646249768,0.01032913,19292.0,19291.0,1.1747162]
[1664646250233,0.01032913,19292.0,19291.0,1.57389666]
[1664646250430,0.01032913,19292.0,19291.0,1.55489666]
[1664646250912,0.01032913,19292.0,19291.0,1.57389666]
[1664646251357,0.01032913,19292.0,19291.0,1.21583066]
[1664646252034,0.01032913,19292.0,19291.0,1.1747162]
[1664646252257,0.01032913,19292.0,19291.0,1.1557162]
[1664646252492,0.01032913,19292.0,19291.0,1.19683066]
[1664646252955,0.01032913,19292.0,19291.0,1.57389666]
[1664646253481,0.01032913,19292.0,19291.0,1.21583066]
[1664646254158,0.01032913,19292.0,19291.0,1.19683066]
[1664646255051,0.01032913,19292.0,19291.0,1.21583066]
[1664646255325,0.01032913,19292.0,19291.0,1.57389666]
[1664646255538,0.01032913,19292.0,19291.0,1.21583066]
[1664646255773,0.01032913,19292.0,19291.0,1.57389666]
[1664646255995,0.01032913,19292.0,19291.0,1.21583066]
[1664646256235,0.01032913,19292.0,19291.0,1.50497569]
[1664646256467,0.01032913,19292.0,19291.0,0.74772923]
[1664646256690,0.01032913,19292.0,19291.0,0.79772923]
[1664646256916,0.01032913,19292.0,19291.0,1.21590969]
[1664646257150,0.01032913,19292.0,19291.0,0.89619744]
[1664646257399,0.01032913,19292.0,19291.0,0.53813144]
[1664646257614,0.01032913,19292.0,19291.0,1.3453779]
[1664646257834,0.01032913,19292.0,19291.0,0.9873119]
[1664646258055,0.01032913,19292.0,19291.0,0.94619744]
[1664646258296,0.01032913,19292.0,19291.0,1.3263779]
[1664646258519,0.01032913,19292.0,19291.0,0.56913144]
[1664646258757,0.01032913,19292.0,19291.0,0.92719744]
[1664646258986,0.01032913,19292.0,19291.0,1.3453779]
[1664646259443,0.01032913,19292.0,19291.0,0.94619744]
[1664646259717,0.01032913,19292.0,19291.0,0.9873119]
[1664646259942,0.01032913,19292.0,19291.0,0.94619744]
[1664646260168,0.37415583,19292.0,19291.0,0.51913144]
[1664646260649,0.50374283,19292.0,19291.0,0.51913144]
[1664646260870,0.76291683,19292.0,19291.0,2.25913144]
[1664646261099,0.76291683,19292.0,19291.0,2.27613144]
[1664646262303,0.76291683,19292.0,19291.0,2.25913144]
[1664646262989,0.76291683,19292.0,19291.0,2.27513144]
[1664646264311,0.76291683,19292.0,19291.0,2.25913144]
[1664646265015,0.76291683,19292.0,19291.0,2.27613144]
[1664646265709,0.50374283,19292.0,19291.0,2.27613144]
[1664646266166,0.50374283,19292.0,19291.0,2.25913144]
[1664646266403,0.76291683,19292.0,19291.0,2.25913144]
[1664646267073,0.76291683,19292.0,19291.0,2.27613144]
[1664646267308,0.76291683,19292.0,19291.0,2.26873144]
[1664646268302,0.76291683,19292.0,19291.0,2.25173144]
[1664646268989,0.76291683,19292.0,19291.0,2.26873144]
[1664646270319,0.76291683,19292.0,19291.0,2.25173144]
[1664646270873,0.76291683,19292.0,19291.0,2.26873144]
[1664646272433,1.06291683,19292.0,19291.0,0.51173144]
[1664646273139,1.06291683,19292.0,19291.0,0.52773144]
[1664646274295,1.58126583,19292.0,19291.0,0.51173144]
[1664646274991,1.58126583,19292.0,19291.0,0.52773144]
[1664646275670,1.28126583,19292.0,19291.0,0.52773144]
[1664646275907,1.58126583,19292.0,19291.0,0.52773144]
[1664646276327,1.58126583,19292.0,19291.0,0.51173144]
[1664646277051,1.58126583,19292.0,19291.0,0.52773144]
[1664646277981,1.28126583,19292.0,19291.0,0.88579744]
[1664646278198,1.28126583,19292.0,19291.0,0.51173144]
[1664646278422,1.58126583,19292.0,19291.0,0.51173144]
[1664646278648,1.28126583,19292.0,19291.0,0.51173144]
[1664646279113,1.28126583,19292.0,19291.0,0.52773144]
[1664646280925,1.28126583,19292.0,19291.0,0.51173144]
[1664646281147,1.28126583,19292.0,19291.0,0.52773144]
[1664646281618,1.58126583,19292.0,19291.0,0.52773144]
[1664646282070,1.28126583,19292.0,19291.0,0.52773144]
[1664646282299,1.58126583,19292.0,19291.0,0.52773144]
[1664646282513,1.28126583,19292.0,19291.0,0.88579744]
[1664646282741,1.28126583,19292.0,19291.0,0.52773144]
[1664646282983,1.28126583,19292.0,19291.0,0.51173144]
[1664646283197,1.58126583,19292.0,19291.0,0.52773144]
[1664646283923,1.28126583,19292.0,19291.0,0.52773144]
[1664646284143,1.58126583,19292.0,19291.0,0.52773144]
[1664646284379,1.58126583,19292.0,19291.0,0.51173144]
[1664646285065,1.58126583,19292.0,19291.0,0.52773144]
[1664646285773,1.58126583,19292.0,19291.0,0.016]
[1664646285774,2.42802771,19292.0,19291.0,0.016]
[1664646286006,2.78609371,19292.0,19291.0,0.016]
[1664646286457,0.3638267,19288.0,19287.0,0.259232]
[1664646286676,0.3638267,19288.0,19287.0,2.98901421]
[1664646286677,0.56866603,19288.0,19287.0,2.98901421]
[1664646286903,0.3638267,19288.0,19287.0,2.63094821]
[1664646287133,0.3638267,19288.0,19287.0,2.65894821]
[1664646287367,0.3638267,19288.0,19287.0,3.01701421]
[1664646287594,0.3638267,19288.0,19287.0,2.65894821]
[1664646287817,0.3638267,19288.0,19287.0,3.01701421]
[1664646288075,0.3638267,19288.0,19287.0,2.53896344]
[1664646288280,0.3638267,19288.0,19287.0,2.89702944]
[1664646288734,0.3638267,19288.0,19287.0,2.96902944]
[1664646289227,0.3638267,19288.0,19287.0,2.94702944]
[1664646289670,0.3638267,19288.0,19287.0,2.58896344]
[1664646289893,0.3638267,19288.0,19287.0,2.99702944]
[1664646290351,0.3638267,19288.0,19287.0,2.91902944]
[1664646290560,0.3638267,19288.0,19287.0,2.96902944]
[1664646290784,0.3638267,19288.0,19287.0,3.3682099]
[1664646291217,0.3638267,19288.0,19287.0,3.3962099]
[1664646291440,0.3638267,19288.0,19287.0,3.6562099]
[1664646291935,0.3638267,19288.0,19287.0,2.89896344]
[1664646292154,0.3638267,19288.0,19287.0,3.25702944]
[1664646292378,0.3638267,19288.0,19287.0,3.62817564]
[1664646292656,0.3638267,19290.0,19288.0,1.529519]
[1664646292906,0.3638267,19290.0,19289.0,1.76979744]
[1664646293135,0.3638267,19290.0,19289.0,1.65666308]
[1664646293367,0.388791,19291.0,19289.0,3.39666308]
[1664646293589,0.388791,19291.0,19289.0,3.65604708]
[1664646293817,0.388791,19291.0,19290.0,0.0999078]
[1664646294747,0.129598,19291.0,19289.0,2.69062844]
[1664646294968,0.129598,19291.0,19290.0,0.0999078]
[1664646295175,0.129598,19291.0,19290.0,1.8559078]
[1664646296120,0.63333583,19292.0,19290.0,2.36763924]
[1664646296355,0.63333983,19292.0,19291.0,0.4579738]
[1664646296587,0.76292883,19292.0,19291.0,0.0999078]
[1664646297080,0.76292883,19292.0,19291.0,0.52373144]
[1664646297310,0.37415583,19292.0,19291.0,1.05202918]
[1664646297538,0.37415583,19292.0,19291.0,0.69396318]
[1664646298272,0.01032913,19292.0,19291.0,0.69396318]
[1664646298500,0.01024235,19292.0,19291.0,3.24076583]
[1664646298980,0.01024235,19292.0,19291.0,2.87064485]
[1664646299219,0.01024235,19292.0,19291.0,2.85202918]
[1664646300651,0.01024235,19292.0,19291.0,2.85942918]
[1664646300895,0.01024235,19292.0,19291.0,2.83742918]
[1664646301133,0.01024235,19292.0,19291.0,2.50436318]
[1664646301363,0.01024235,19292.0,19291.0,2.86242918]
[1664646302519,0.01024235,19292.0,19291.0,2.83742918]
[1664646302751,0.01024235,19292.0,19291.0,2.47936318]
[1664646302973,0.01024235,19292.0,19291.0,2.83742918]
[1664646303200,0.01024235,19292.0,19291.0,2.86242918]
[1664646303454,0.01024235,19292.0,19291.0,2.50436318]
[1664646304165,0.01024235,19292.0,19291.0,2.86242918]
[1664646304458,0.01024235,19292.0,19291.0,2.47936318]
[1664646304917,0.01024235,19292.0,19291.0,2.32945538]
[1664646305159,0.3638267,19292.0,19291.0,0.53373144]
[1664646305384,0.3638267,19292.0,19291.0,0.89179744]
[1664646305639,0.3638267,19292.0,19291.0,0.53373144]
[1664646305860,0.36865534,19292.0,19291.0,0.53373144]
[1664646306319,0.00482864,19292.0,19291.0,0.71599138]
[1664646306547,0.00482864,19292.0,19291.0,0.74399138]
[1664646307314,0.01185879,19292.0,19291.0,0.76599138]
[1664646307766,0.01185879,19292.0,19291.0,2.86405738]
[1664646307999,0.01185879,19292.0,19291.0,2.50599138]
[1664646308233,0.01185879,19292.0,19291.0,2.86405738]
[1664646308449,0.01185879,19292.0,19291.0,2.84205738]
[1664646308900,0.01185879,19292.0,19291.0,2.48399138]
[1664646309123,0.01185879,19292.0,19291.0,2.86405738]
[1664646309365,0.04223764,19292.0,19291.0,2.86405738]
[1664646309805,0.04223764,19292.0,19291.0,2.50599138]
[1664646310044,0.04223764,19292.0,19291.0,2.86405738]
[1664646310281,0.04223764,19292.0,19291.0,2.50599138]
[1664646310521,0.04223764,19292.0,19291.0,2.84205738]
[1664646310966,0.04223764,19292.0,19291.0,2.48399138]
[1664646311253,0.04223764,19292.0,19291.0,2.50599138]
[1664646311478,0.04223764,19292.0,19291.0,2.86405738]
[1664646312420,0.04223764,19292.0,19291.0,2.50599138]
[1664646312643,0.04223764,19292.0,19291.0,2.84205738]
[1664646312879,0.04223764,19292.0,19291.0,2.79205738]
[1664646313107,0.40606434,19292.0,19291.0,0.51173144]
[1664646313333,0.40606434,19292.0,19291.0,0.52873144]
[1664646314053,0.53565134,19292.0,19291.0,0.52873144]
[1664646314516,0.53565134,19292.0,19291.0,0.51173144]
[1664646315024,0.79482534,19292.0,19291.0,0.51173144]
[1664646315248,0.79482534,19292.0,19291.0,0.52873144]
[1664646316601,0.79482534,19292.0,19291.0,0.51173144]
[1664646317384,0.79482534,19292.0,19291.0,0.52873144]
[1664646318136,1.09482534,19292.0,19291.0,0.52873144]
[1664646318378,0.79482534,19292.0,19291.0,0.52873144]
[1664646318601,0.79482534,19292.0,19291.0,0.51173144]
[1664646319273,0.79482534,19292.0,19291.0,0.52673144]
[1664646319718,1.09482534,19292.0,19291.0,0.52673144]
[1664646320394,0.79482534,19292.0,19291.0,0.52673144]
[1664646320608,0.79482534,19292.0,19291.0,0.51161678]
[1664646321314,0.79482534,19292.0,19291.0,0.52661678]
[1664646322467,0.79482534,19292.0,19291.0,0.51161678]
[1664646323156,1.09482534,19292.0,19291.0,0.51161678]
[1664646323380,1.09482534,19292.0,19291.0,0.52661678]
[1664646324097,0.79482534,19292.0,19291.0,0.52661678]
[1664646324537,0.79482534,19292.0,19291.0,0.51161678]
[1664646325203,0.79482534,19292.0,19291.0,0.52861678]
[1664646326418,0.79482534,19292.0,19291.0,0.86968278]
[1664646326967,0.79482534,19292.0,19291.0,0.51161678]
[1664646327181,0.79482534,19292.0,19291.0,0.52761678]
[1664646328554,0.79482534,19292.0,19291.0,0.51161678]
[1664646329231,0.79482534,19292.0,19291.0,0.52661678]
[1664646330818,0.79482534,19292.0,19291.0,0.51161678]
[1664646331317,0.78296655,19292.0,19291.0,0.52661678]
[1664646332627,0.78296655,19292.0,19291.0,0.51161678]
[1664646333209,0.78296655,19292.0,19291.0,0.52661678]
[1664646334391,0.78296655,19292.0,19291.0,0.51161678]
[1664646335289,0.78296655,19292.0,19291.0,0.52661678]
[1664646336380,0.78296655,19292.0,19291.0,0.51161678]
[1664646337299,0.78296655,19292.0,19291.0,0.54967001]
[1664646338504,0.78296655,19292.0,19291.0,0.53467001]
[1664646338993,0.78296655,19292.0,19291.0,0.89273601]
[1664646339192,0.78296655,19292.0,19291.0,0.53467001]
[1664646339402,0.78296655,19292.0,19291.0,0.55067001]
[1664646339651,0.78296655,19292.0,19291.0,0.60067001]
[1664646339652,0.39420555,19292.0,19291.0,0.60067001]
[1664646340095,0.39420555,19292.0,19291.0,0.65067001]
[1664646340542,0.39420555,19292.0,19291.0,0.63467001]
[1664646341218,0.39420555,19292.0,19291.0,0.65067001]
[1664646341642,0.39420555,19292.0,19291.0,0.60067001]
[1664646341874,0.39412087,19292.0,19291.0,0.83962371]
[1664646342290,0.39412087,19292.0,19291.0,0.73962371]
[1664646342511,0.52370787,19292.0,19291.0,0.72362371]
[1664646342690,0.39412087,19292.0,19291.0,1.13168971]
[1664646342967,0.39412087,19292.0,19291.0,1.18168971]
[1664646343181,0.39412087,19292.0,19291.0,1.20068971]
[1664646343399,0.39412087,19292.0,19291.0,0.84262371]
[1664646343609,0.39412087,19292.0,19291.0,0.97221771]
[1664646344273,0.39412087,19292.0,19291.0,1.10184603]
[1664646344925,0.39412087,19292.0,19291.0,1.08284603]
[1664646345366,0.39412087,19292.0,19291.0,1.10184603]
[1664646346505,0.39412087,19292.0,19291.0,1.08284603]
[1664646346959,0.39412087,19292.0,19291.0,1.21244003]
[1664646347166,0.39412087,19292.0,19291.0,1.57050603]
[1664646347381,0.39412087,19292.0,19291.0,1.23144003]
[1664646347642,0.39412087,19292.0,19291.0,1.58950603]
[1664646347881,0.39412087,19292.0,19291.0,1.23144003]
[1664646348093,0.39412087,19292.0,19291.0,1.58950603]
[1664646348317,0.39412087,19292.0,19291.0,1.23144003]
[1664646348550,0.39412087,19292.0,19291.0,1.21244003]
[1664646349255,0.03029417,19292.0,19291.0,1.61162049]
[1664646349512,0.03029417,19292.0,19291.0,1.98868649]
[1664646350158,0.03029417,19292.0,19291.0,1.63062049]
[1664646350316,0.03029417,19292.0,19291.0,1.98868649]
[1664646350525,0.03029417,19292.0,19291.0,1.61162049]
[1664646351300,0.03029417,19292.0,19291.0,1.63062049]
[1664646351526,0.03029417,19292.0,19291.0,1.98868649]
[1664646351765,0.03029417,19292.0,19291.0,1.63062049]
[1664646351990,0.03029417,19292.0,19291.0,1.88980849]
[1664646352259,0.03029417,19292.0,19291.0,2.40818449]
[1664646352464,0.03029417,19292.0,19291.0,1.88980849]
[1664646352674,0.03029417,19292.0,19291.0,1.87080849]
[1664646352805,0.03029417,19292.0,19291.0,2.22887449]
[1664646353065,0.03029417,19292.0,19291.0,2.22881317]
[1664646353231,0.03029417,19292.0,19291.0,1.88974717]
[1664646353445,0.03029417,19292.0,19291.0,2.24781317]
[1664646353657,0.03029417,19292.0,19291.0,1.88974717]
[1664646354252,0.03029417,19292.0,19291.0,1.78980849]
[1664646354486,0.03029417,19292.0,19291.0,0.99248633]
[1664646354703,0.03029417,19292.0,19291.0,0.97348633]
[1664646354918,0.03029417,19292.0,19291.0,1.02348633]
[1664646355132,0.03029417,19292.0,19291.0,0.97348633]
[1664646355357,0.03029417,19292.0,19291.0,0.99148633]
[1664646355588,0.03029417,19292.0,19291.0,1.04148633]
[1664646356025,0.03029417,19292.0,19291.0,0.99148633]
[1664646356453,0.03029417,19292.0,19291.0,0.86189233]
[1664646356678,0.03029417,19292.0,19291.0,0.86929233]
[1664646357194,0.03029417,19292.0,19291.0,0.80129233]
[1664646357422,0.03029417,19292.0,19291.0,0.81929233]
[1664646358069,0.03029417,19292.0,19291.0,0.86929233]
[1664646358564,0.03029417,19292.0,19291.0,0.81929233]
[1664646358773,0.03029417,19292.0,19291.0,0.80129233]
[1664646359427,0.03029417,19292.0,19291.0,0.81929233]
[1664646360223,0.03029417,19292.0,19291.0,0.86929233]
[1664646360728,0.03029417,19292.0,19291.0,0.85129233]
[1664646360956,0.03029417,19292.0,19291.0,2.54129233]
[1664646361374,0.03029417,19292.0,19291.0,2.55929233]
[1664646362622,0.03029417,19292.0,19291.0,2.54129233]
[1664646363359,0.03029417,19292.0,19291.0,2.55929233]
[1664646364311,0.03029417,19292.0,19291.0,2.97001876]
[1664646364570,0.03029417,19292.0,19291.0,2.95201876]
[1664646365484,0.03029417,19292.0,19291.0,2.55929233]
[1664646365979,0.03029417,19292.0,19291.0,2.55189233]
[1664646366585,0.03029417,19292.0,19291.0,2.53389233]
[1664646367239,0.03029417,19292.0,19291.0,2.58389233]
[1664646367428,0.03029417,19292.0,19291.0,2.60189233]
[1664646368101,0.03029417,19292.0,19291.0,2.55189233]
[1664646368565,0.03029417,19292.0,19291.0,2.53389233]
[1664646368787,0.03029417,19292.0,19291.0,2.27467001]
[1664646368788,0.5989602,19292.0,19291.0,2.27467001]
[1664646369081,1.14287789,19292.0,19291.0,0.02305323]
[1664646369294,2.41332714,19292.0,19291.0,0.03105323]
[1664646369512,3.4951869,19292.0,19291.0,0.03105323]
[1664646369739,3.53584913,19292.0,19291.0,0.03105323]
[1664646369973,3.6372182,19292.0,19291.0,0.03105323]
[1664646370190,3.20550325,19292.0,19291.0,0.03105323]
[1664646370639,3.20550325,19292.0,19291.0,0.02305323]
[1664646371330,3.24621066,19292.0,19291.0,0.02305323]
[1664646371767,3.20551291,19292.0,19291.0,0.02305323]
[1664646372456,3.1648862,19292.0,19291.0,0.02305323]
[1664646372676,3.20552385,19292.0,19291.0,0.02305323]
[1664646373085,3.24621066,19292.0,19291.0,0.02305323]
[1664646373519,3.10389286,19292.0,19291.0,0.02305323]
[1664646374663,2.36215325,19292.0,19291.0,0.02305323]
[1664646374872,2.72021925,19292.0,19291.0,0.02305323]
[1664646376641,2.72021925,19292.0,19291.0,0.02298524]
[1664646383828,2.36215325,19292.0,19291.0,0.02298524]
[1664646384014,2.72021925,19292.0,19291.0,0.02298524]
[1664646385795,2.36215325,19292.0,19291.0,0.02298524]
[1664646386004,2.72021925,19292.0,19291.0,0.02298524]
[1664646390749,2.75989915,19292.0,19291.0,0.02298524]
[1664646392752,2.72021925,19292.0,19291.0,0.02298524]
[1664646396381,2.36215325,19292.0,19291.0,0.02298524]
[1664646396806,2.72021925,19292.0,19291.0,0.02298524]
[1664646397924,2.36215325,19292.0,19291.0,0.02298524]
[1664646398056,2.72021925,19292.0,19291.0,0.02291331]
[1664646406258,2.14849179,19292.0,19291.0,0.02291331]
[1664646406539,1.60123087,19292.0,19291.0,0.02291331]
[1664646406830,1.95929687,19292.0,19291.0,0.02291331]
[1664646412230,1.99749121,19292.0,19291.0,0.02291331]
[1664646412725,1.95929687,19292.0,19291.0,0.02291331]
[1664646412947,2.24205487,19292.0,19291.0,0.02291331]
[1664646414044,2.28266388,19292.0,19291.0,0.02291331]
[1664646414916,2.34365722,19292.0,19291.0,0.02291331]
[1664646415137,2.28266388,19292.0,19291.0,0.02291331]
[1664646415313,2.34365722,19292.0,19291.0,0.02291331]
[1664646415530,2.34365722,19292.0,19291.0,0.02391331]
[1664646415762,2.28266388,19292.0,19291.0,0.02391331]
[1664646415970,2.34365722,19292.0,19291.0,0.02391331]
[1664646416163,2.28266388,19292.0,19291.0,0.02391331]
[1664646416396,0.4138267,19291.0,19290.0,0.18329131]
[1664646416619,0.3638267,19290.0,19289.0,0.259392]
[1664646416836,1.1822327,19290.0,19287.0,0.78747652]
[1664646417195,0.3,19289.0,19288.0,0.51173144]
[1664646417414,0.688822,19289.0,19288.0,0.51173144]
[1664646417599,0.688822,19289.0,19288.0,0.52273144]
[1664646417834,1.0526487,19289.0,19288.0,0.52273144]
[1664646418985,1.0526487,19289.0,19288.0,0.51173144]
[1664646419575,1.0526487,19289.0,19288.0,0.52273144]
[1664646420475,1.5710787,19289.0,19288.0,0.52273144]
[1664646420905,1.5710787,19289.0,19288.0,0.51173144]
[1664646421731,1.5710787,19289.0,19288.0,0.52273144]
[1664646422824,1.5710787,19289.0,19288.0,0.51173144]
[1664646423062,1.5710787,19289.0,19287.0,0.519418]
[1664646423299,1.5710787,19289.0,19287.0,0.26]
[1664646423300,0.7218927,19288.0,19287.0,0.26]
[1664646423565,1.5711257,19288.0,19287.0,0.26]
[1664646423811,1.5711257,19288.0,19287.0,0.274]
[1664646424886,1.5711257,19288.0,19287.0,0.26]
[1664646425675,1.5711257,19288.0,19287.0,0.275]
[1664646426952,1.5711257,19288.0,19287.0,0.26]
[1664646427623,1.5711257,19288.0,19287.0,0.275]
[1664646428031,1.2711257,19288.0,19287.0,0.633066]
[1664646428261,1.5711257,19288.0,19287.0,0.633066]
[1664646428398,1.5711257,19288.0,19287.0,0.275]
[1664646428846,1.5711257,19288.0,19287.0,0.26]
[1664646429695,1.5711257,19288.0,19287.0,0.275]
[1664646430817,1.5711257,19288.0,19287.0,0.26]
[1664646431035,1.9291917,19288.0,19287.0,0.26]
[1664646431411,1.5711257,19288.0,19287.0,0.26]
[1664646431862,1.5711257,19288.0,19287.0,0.275]
[1664646433021,1.5711257,19288.0,19287.0,0.26]
[1664646433686,1.9291917,19288.0,19287.0,0.274]
[1664646433917,1.5711257,19288.0,19287.0,0.274]
[1664646435088,1.5711257,19288.0,19287.0,0.26]
[1664646435763,1.61070781,19288.0,19287.0,0.274]
[1664646437109,1.61070781,19288.0,19287.0,0.26]
[1664646437797,1.61070781,19288.0,19287.0,0.275]
[1664646439423,1.61070781,19288.0,19287.0,0.26]
[1664646439868,1.61070781,19288.0,19287.0,0.275]
[1664646440301,1.61070781,19288.0,19287.0,0.27489752]
[1664646441056,1.61070781,19288.0,19287.0,0.25989752]
[1664646441671,1.61070781,19288.0,19287.0,0.27489752]
[1664646442933,1.61070781,19288.0,19287.0,0.25989752]
[1664646443841,1.61070781,19288.0,19287.0,0.27489752]
[1664646444648,1.61070781,19288.0,19280.0,5.12182321]
[1664646444649,0.3638267,19281.0,19280.0,5.12182321]
[1664646444894,0.59838303,19281.0,19280.0,0.04085803]
[1664646445141,0.59838303,19281.0,19277.0,0.1]
[1664646445142,0.3638267,19278.0,19277.0,0.1]
[1664646445373,0.3638267,19277.0,19276.0,0.055]
[1664646445655,1.25993865,19277.0,19276.0,0.055]
[1664646445891,1.35293487,19277.0,19276.0,0.055]
[1664646446126,1.89743416,19277.0,19276.0,0.055]
[1664646446359,1.50616154,19277.0,19276.0,0.055]
[1664646446585,1.53915919,19277.0,19276.0,0.055]
[1664646446811,1.14788657,19277.0,19276.0,0.055]
[1664646447969,1.22688657,19277.0,19276.0,0.055]
[1664646448443,1.61815919,19277.0,19276.0,0.055]
[1664646448679,1.22688657,19277.0,19276.0,0.315]
[1664646448921,0.4138267,19274.0,19273.0,0.001]
[1664646449152,1.80062207,19274.0,19273.0,0.001]
[1664646449418,1.59578274,19274.0,19273.0,0.001]
[1664646449664,1.59578274,19274.0,19273.0,0.006]
[1664646449898,1.25827514,19274.0,19273.0,0.006]
[1664646450125,1.81227741,19274.0,19273.0,0.006]
[1664646450363,2.20278501,19274.0,19273.0,0.006]
[1664646451056,2.14978501,19274.0,19273.0,0.006]
[1664646452050,2.14978501,19274.0,19272.0,0.0021]
[1664646452051,1.8138267,19273.0,19272.0,0.0021]
[1664646452316,3.57262241,19273.0,19272.0,0.0021]
[1664646453013,3.60291658,19273.0,19272.0,0.0021]
[1664646453314,1.6138267,19272.0,19271.0,0.0021]
[1664646453558,1.6138267,19272.0,19270.0,0.0031]
[1664646453559,0.4138267,19271.0,19270.0,0.0031]
[1664646453776,1.97413174,19271.0,19270.0,0.0031]
[1664646454733,3.11534468,19271.0,19269.0,0.0031]
[1664646454959,0.4138267,19269.0,19268.0,0.00304362]
[1664646455189,0.4138267,19269.0,19262.0,1.3687]
[1664646455190,1.3138267,19268.0,19262.0,1.3687]
[1664646455415,2.21304918,19268.0,19262.0,1.3687]
[1664646455642,2.00820985,19268.0,19262.0,1.3687]
[1664646455870,2.08720985,19268.0,19262.0,1.3687]
[1664646456120,2.08720985,19268.0,19267.0,0.0061]
[1664646457373,0.3638267,19261.0,19260.0,0.0011]
[1664646457615,2.28376347,19261.0,19260.0,0.0011]
[1664646457855,2.28376347,19261.0,19258.0,0.0012]
[1664646457856,0.36349716,19259.0,19258.0,0.0012]
[1664646458092,0.60833649,19259.0,19258.0,0.0012]
[1664646458355,0.96640249,19259.0,19258.0,0.0012]
[1664646458814,0.76156316,19259.0,19258.0,0.0062]
[1664646459066,1.55429025,19259.0,19258.0,0.0062]
[1664646459316,2.50708537,19259.0,19258.0,0.0062]
[1664646459540,2.01178537,19259.0,19258.0,0.0062]
[1664646459768,1.96178537,19259.0,19258.0,0.0062]
[1664646460023,2.03978537,19259.0,19258.0,0.0062]
[1664646460982,5.78164898,19259.0,19258.0,0.0062]
[1664646461215,5.70364898,19259.0,19258.0,0.0062]
[1664646461448,0.69879716,19257.0,19256.0,0.0031]
[1664646461680,0.50309388,19257.0,19256.0,0.0031]
[1664646461933,0.40349716,19257.0,19256.0,0.0031]
[1664646462174,0.489461,19258.0,19256.0,0.0031]
[1664646462175,0.1,19258.0,19256.0,0.62455144]
[1664646462423,0.18249716,19259.0,19257.0,2.16095088]
[1664646462670,0.18249716,19259.0,19258.0,1.06522233]
[1664646462890,0.079,19259.0,19258.0,3.32695377]
[1664646463125,0.10349716,19262.0,19258.0,2.96888777]
[1664646463390,0.29418446,19263.0,19260.0,0.9]
[1664646463622,0.29418446,19263.0,19261.0,0.39115344]
[1664646463860,0.37318446,19263.0,19262.0,1.3]
[1664646464079,0.37318446,19263.0,19262.0,0.0999078]
[1664646464311,0.18249716,19263.0,19262.0,0.0999078]
[1664646464550,0.18249716,19263.0,19261.0,0.89115344]
[1664646465042,0.10349716,19263.0,19261.0,0.89115344]
[1664646465500,0.09499716,19262.0,19261.0,0.89115344]
[1664646466399,0.17399716,19263.0,19261.0,0.89115344]
[1664646466633,0.17399716,19263.0,19262.0,1.39106124]
[1664646466872,0.17399716,19263.0,19262.0,1.74912724]
[1664646466873,0.079,19263.0,19262.0,1.74912724]
[1664646467111,0.09499716,19265.0,19262.0,2.60503689]
[1664646467327,0.09499716,19265.0,19263.0,0.39115344]
[1664646467619,0.69411033,19267.0,19264.0,0.0999078]
[1664646467854,0.067,19265.0,19264.0,0.0999078]
[1664646468087,0.067,19265.0,19264.0,0.9]
[1664646468334,0.067,19265.0,19264.0,2.260657]
[1664646468609,0.067,19265.0,19264.0,2.310657]
[1664646468852,0.067,19265.0,19264.0,1.952591]
[1664646469078,0.067,19265.0,19264.0,2.520657]
[1664646469314,0.067,19265.0,19264.0,2.162591]
[1664646469547,0.067,19265.0,19264.0,2.520657]
[1664646469810,0.22473516,19270.0,19264.0,2.520657]
[1664646470032,0.53948461,19270.0,19265.0,1.03274188]
[1664646470257,0.358066,19269.0,19266.0,0.39115344]
[1664646470479,0.3,19268.0,19266.0,0.52100344]
[1664646470942,0.3,19269.0,19267.0,0.0999078]
[1664646471167,0.3,19269.0,19266.0,0.52100344]
[1664646471412,0.52473516,19270.0,19266.0,1.03273488]
[1664646471641,0.66464528,19270.0,19266.0,1.03273488]
[1664646471892,0.079,19269.0,19266.0,1.03273488]
[1664646472111,0.379,19269.0,19266.0,1.03273488]
[1664646473049,0.03029417,19267.0,19266.0,1.03273488]
[1664646473965,0.10929417,19267.0,19266.0,1.03273488]
[1664646474204,0.10929417,19267.0,19266.0,1.39080088]